{"text_format":"1","workbook":"xlsx","n_sheets":15,"sheets":["Read-me-first","Registration Details","Faculty Summary","Faculty_Details","IPR","Sponsored Research","Consultancy","Education Program","Students","Public Exam","Student Event","Facilities","PH_Facilities","Sheet1","Sheet2"],"not_rendered":{"charts":0,"images":3,"macros":1,"external_links":0,"defined_names":4,"comments":0,"pivot_tables":0},"unopened":[],"bounds":{"document_bytes":16777216,"sheet_cells":100000,"rows_first":2000,"rows_last":500,"rows_between":2000,"halvings":0,"cell_chars":16384,"cell_head_chars":4096},"cells_cut":0,"cells_raw":0,"read":"whole","date_system":"1900"}

{"sheet":"Read-me-first","index":0,"n_rows":28,"n_cols":2,"rows_kept":28,"cut":false,"hidden":false,"merged":[]}
["<?xml version=\"1.0\" encoding=\"UTF-8\"?>"]
[]
[]
[]
[]
[null,"National Institutional Ranking Framework"]
[null,"Data Submission Utility (For Engineering)"]
[null,"Instructions "]
[null,"Read the instructions given below carefully before collection of the data"]
[1," This Data Submission Utility is provided to facilitate collection and submission of data required for ranking of institutions according to ranking formula developed by NIRF. "]
[2,"Institutions can use either of the following two methods to provide requisite data for ranking:"]
[null,"(i)  Collect the data using Data Submission Utility and generate an XML file using it that can be uploaded onto the Web-based Data Capturing Platform. See \"How to generate and upload XML file through Data Submission Utility\"; or"]
[null,"(ii) Enter the data online directly into Data Capturing Platform that would be available by Dec., 2015 on NIRF portal. "]
[3,"Click at \"Enable Macros\" when you open the Data Submission Utility. In case you have opted for \"Disabled Macros\", close the file without saving it and opt for \"Enable Macros\" on reopening the file (*.xlsm file)."]
[4,"There are twelve worksheets in the Data Submission Utility, i.e. Registration Details, Faculty Summary, Faculty Details, IPR, Sponsored Research, Consultancy, Education Program, Students, Public Exam., Student Events, Facilities and PH Facilities. You are required to collect data on each of these parameters / sub-parameters. The data input type, i.e. numeric, text, date format, etc., is in-built into field. Please do not try to input any other type of values other than specified for a given field."]
[5," You can fill-in any of the 12 worksheets in any order depending on availability of data. However, once a datasheet is complete in all respect, click at \"Validate\" button to validate data values in each field. Once you click at \"Validate\", the utility will verify the data and prompt either of the two messages: i) \"Sheet is Valid\"; or ii). \"Data is not proper\" along with the respective fields where corrections are required. Correct the data for respective fields and validate again till you get the prompt \"Sheet is Valid\"."]
[6,"Instructions / comments to submit data for each field is given either in respective field (on mouse hover) OR worksheet. Please read these instructions carefully."]
[7,"Only data that can be verified through official records should be provided. All the data finally up-loaded into the Data Capturing System of NIRF should also be made publicly visible on the institute / college website, and should be archived for at least three years. A copy of the same will be made available for the public through the NIRF portal."]
[8,"All statements of expenditure on different heads should be verifiable from annual accounts for the appropriate financial year."]
[9,"All financial data should pertain to the appropriate financial year (i.e. April to March), student and faculty data for the academic year (i.e. July to June) and publications and other information for the calendar year (i.e. January to December) under reference. The appropriate year description is also made explicit in the worksheet."]
[10,"While submitting and up-loading the data, the institute should agree to these and other terms and conditions that may be decided by the Ranking Authority from time to time."]
[11," You can either use Data Submission Utility OR online data capturing platform for submission of data. You can use only one of the alternatives and not a mixture of the two."]
[12,"There are two attachments that are to be uploaded on to the \"Data Capturing Platform\" i.e. List of Research Publications (as per instructions given in IPR worksheet) and Zero-deficiency Report from AICTE, if applicable."]
[13," Difficulties, comments and suggestions regarding Data Submission Utility may please be communicated to \"helpdesk@nirfindia.org\""]
[]
[null,"How to generate and upload XML file through Data Submission Utility"]
[1,"The button for generating XML for all the twelve worksheets is available on the twelfth worksheet entitled \"PH_Facilities\". Generate XML only when you have validated all worksheets. Click on the 'Generate XML' button. This will revalidate all the sheets, and direct you to the confirmation page which shows XML for various worksheets and the number of rows generated for every worksheet."]
[2,"The XML file will be generated with Institute ID (e.g., NIRF-ENGG-1-0123456789.XML) in the same folder location where Data Submission Utility is available. This XML can then be uploaded onto the NIRF website."]

{"sheet":"Registration Details","index":1,"n_rows":17,"n_cols":3,"rows_kept":17,"cut":false,"hidden":false,"merged":[[5,0,5,3],[7,0,7,3]]}
[]
[]
[]
[]
[]
[]
[]
["Registration Details"]
[]
[null,"Institute ID (NIRF ID)","NIRF-ENGG-1-2455738424"]
[null,"Ranking Year",2015]
[null,"Name of Nodal Officer ","Dr. N Venkatesh"]
[null,"Nodal Officer's  Email","venksati@gmail.com"]
[null,"Mobile No. of Nodal Officer",9945677811]
[null,"Place","Mangaluru"]
[null,"Creation Date",{"$f":"TODAY()","v":"2016-01-18"}]
[null,"Is Revised","N"]

{"sheet":"Faculty Summary","index":2,"n_rows":22,"n_cols":11,"rows_kept":22,"cut":false,"hidden":false,"merged":[[11,6,13,6],[19,2,19,8],[20,2,20,8],[21,2,21,8],[2,2,2,10],[1,2,1,10],[4,0,5,10],[7,7,7,8],[7,9,7,10],[6,7,6,10],[6,2,6,5],[7,2,7,3],[7,4,7,5],[6,0,8,0],[6,1,8,1],[6,6,8,6]]}
[]
[]
[]
[]
["Details of Faculty for all Programs Year-wise (Academic Years) for three Years (1.a and 1.b)"]
[]
["Sl. No.","Academic Year","Number of faculty\n(Include regular faculty only)",null,null,null,"Average Faculty Experience\n","Number of Visiting Faculty with PhD only, for at least one semester on full-time basis\n"]
[null,null,"Male",null,"Female",null,null,"Male",null,"Female"]
[null,null,"With PhD as highest degree","With M.Tech as highest degree","With PhD as highest degree","With M.Tech as highest degree",null,"Visiting Faculty for One semester only","Visiting Faculty for both semesters","Visiting Faculty for One semester only","Visiting Faculty for both semester"]
["[1]","[2]","[3]","[4]","[5]","[6]","[7]","[8]","[9]","[10]","[11]"]
["Input type =>",null,"numeric only","numeric only","numeric only","numeric only","number only","numeric only","numeric only","numeric only","numeric only"]
[1,"2014-15",6,60,3,25,"(to be computed by the system)",0,0,0,0]
[2,"2013-14",5,66,3,27,null,0,0,0,0]
[3,"2012-13",5,65,3,16,null,0,0,0,0]
[]
[null,null,null,null,null," "]
[]
[]
[null,"Notes on \"Faculty Summary\""]
[null,"Col: 3-6","i) Fill in the numbers of faculty (Male/Female) with Ph.D. / M.Tech as highest degree in respective columns. \nii) Number of Faculty members having both M.Tech & Ph.D. should be included under column 3/5 only for male / female faculty.\niii) Regular appointment means faculty on full-time basis with no time limit on their employment. However, faculty on contract basis for a period of not less than 3 years, on gross salary similar to those who are permanent can also be included.\niv) Faculty members with a  B.Tech (or equivalent  qualification) should not be counted."]
[null,"Col: 7","The Average faculty experience will be computed based on the age of the faculty members in the faculty details. Fill in the date of birth and other details in the \"Faculty Details\" sheet carefully. "]
[null,"Col:8-11","Fill-in the number of visiting faculty (Male/Female) with Ph.D. only who have taught at least one semester in Column 8 and 10 respectively. The number of visiting faculty who have taught two semesters in an academic year should be given in column 9 & 11 respectively. Do not count these faculty members while filling-in the details for column 8 & 10."]

{"sheet":"Faculty_Details","index":3,"n_rows":137,"n_cols":26,"rows_kept":137,"cut":false,"hidden":false,"merged":[[6,20,8,20],[1,2,1,17],[5,0,5,17],[2,2,2,17],[6,0,8,0],[6,1,8,1],[6,2,8,2],[6,3,8,3],[6,4,8,4],[6,5,8,5],[6,6,8,6],[6,7,8,7],[6,8,6,11],[6,12,7,13],[6,14,6,15],[6,19,8,19],[6,18,8,18],[6,17,8,17],[7,8,7,9],[7,10,7,11],[7,14,8,14],[7,15,8,15],[6,16,8,16]]}
[]
[]
[]
["Sr. No.","Faculty Name","Gender","Pan No","Designation","Date of Birth","Highest Qualification Mtech/Ph.D.","Year of Acquiring Highest Degree","Teaching Experience in No. of Years in relevant subject area - Regular Capacity - Year","Teaching Experience in No. of Years in relevant subject area - Regular Capacity - Months","Teaching Experience in No. of Years in relevant subject area - Contractual Capacity - Year","Teaching Experience in No. of Years in relevant subject area - Contractual Capacity - Months","Experience in Industry / Research Organisation in - Years","Experience in Industry / Research Organisation in - Months","Total Experience in No. of Years - Years","Total Experience in No. of Years - Months","Present Association Type","If Visiting Faculty : Number of semesters taught last year","Date of Joining the Institute",null,"Date of Leaving the Institute"]
[126,{"$f":"TODAY()","v":"2016-01-18"},{"$f":"YEAR(B5)","v":2016},{"$f":"+C5-20","v":1996},{"$f":"DATE(D5,12,31)","v":"1996-12-31"}]
["Details of all Faculty for Last 3 Academic Years (1.b)"]
["Sl. No.","Name of the Faculty ","Male/ Female","PAN No.","Designation","Date of Birth","Highest Qualification\nMTech/Ph.D.","Year of acquiring Highest Degree","Teaching Experience in No. of Years  in relevant subject area",null,null,null,"Experience in Industry/ Research Organisation in No. of Years, if any",null,"Total Experience in no. of years",null,"Type ","If Visiting Faculty:  number of semesters taught last year","Date of Joining the Institute","Job Status","Date of Leaving the Institute"]
[null,null,null,null,null,null,null,null,"Regular capacity",null,"Contractual capacity",null,null,null,"Years","Months"]
[null,null,null,null,null,null,null,null,"years","months","years","months","years","months"]
["[1]","[2]","[3]","[4]","[5]","[6]","[7]","[8]","[9]","[10]","[11]","[12]","[13]","[14]","[15]","[16]","[17]","[18]","[19]","[20]","[21]",null,"Year Total","Month total trunc","month total with mod","Age"]
["Sr. No.","Last name, First name, Middle name (full)","Male - M, Female - F","10 character","Professor \nAssociate Professor \nAsstt. Professor \nEmeritus Professor \nOther","DD-MM-YYYY","PG (MTech), PhD","YYYY","numeric only","numeric only","numeric only","numeric only","numeric only","numeric only","numeric only (computed by system)","numeric only (computed by system)","Regular / Adhoc / Contractual / Full-time visiting","1- for one semester only, 2- for both semesters","DD-MM-YYYY","DD-MM-YYYY\n1- Continue\n2 - Leaving","DD-MM-YYYY"]
[1,"BHAT GANESH VISHWANATH.","M","AHBPB1712C","Professor","1974-09-24","PhD",2011,17,7,0,0,10,0,{"$f":"+W12+X12","v":27},{"$f":"+Y12","v":7},"Regular",0,"2002-08-10",1,"2015-12-31",null,{"$f":"(I12+K12+M12)","v":27},{"$f":"TRUNC((J12+L12+N12)/12)","v":0},{"$f":"MOD((J12+L12+N12),12)","v":7},{"$f":"DATEDIF(F12,$B$5,\"y\")-20","v":21}]
[{"$f":"+A12+1","v":2},"RAI SHANTHARAMA ","M","AGRPC6607J","Professor","1975-05-10","PhD",2011,17,0,0,0,10,0,27,0,"Regular",0,"2008-02-01",1,"2015-12-31",null,27,0,0,20]
[3,"BHAT SUBRAMANYA ","M","AOGPB1928N","Associate Professor","1978-05-04","M.Tech.",2006,11,0,0,0,9,0,20,0,"Regular",0,"2007-08-06",1,"2015-12-31",null,20,0,0,17]
[4,"SHETTY RAGHAVENDRA ","M","BQEPS8437A","Associate Professor","1970-12-14","M.Tech.",2010,14,0,0,0,8,0,22,0,"Regular",0,"2009-08-21",1,"2015-12-31",null,22,0,0,25]
[5,"DAYANANDA ","M","AUKPK1647F","Associate Professor","14-05-1978","M.Tech.",2006,13,2,0,0,0,5,13,7,"Regular",0,"24-07-2014",1,"2015-12-31",null,13,0,7,17]
[6,"ACHARYA SAVITHA ","F","ASUPS9806N","Asstt. Professor","1977-04-12","M.Tech.",2010,15,0,0,0,0,0,15,0,"Regular",0,"2004-08-17",1,"2015-12-31",null,15,0,0,18]
[7,"JAYASHREE","F","BAFPK9403F","Asstt. Professor","1982-10-30","M.Tech.",2011,10,0,0,0,0,0,10,0,"Regular",0,"2006-01-03",1,"2015-12-31",null,10,0,0,13]
[8,"ASHWINI","F","AFVPV0792E","Asstt. Professor","1978-09-09","M.Tech.",2011,12,0,0,0,0,0,12,0,"Regular",0,"2006-01-25",1,"2015-12-31",null,12,0,0,17]
[9,"AKSHATHA BALIGA","F","ALXPB8840R","Asstt. Professor","1982-04-01","M.Tech.",2012,9,0,0,0,2,0,11,0,"Regular",0,"2007-01-02",1,"2015-12-31",null,11,0,0,13]
[10,"SRILAKSHMI","F","BGZPK3862L","Asstt. Professor","24-03-1985","M.Tech.",2009,7,0,0,0,0,0,7,0,"Regular",0,"2009-02-02",1,"2015-12-31",null,7,0,0,10]
[11,"MANJUKIRAN ","M","BFEPK6174H","Asstt. Professor","31-10-1984","M.Tech.",2009,6,0,0,0,0,0,6,0,"Regular",0,"2010-06-15",1,"2015-12-31",null,6,0,0,11]
[12,"AJEYA","M","AYXPB7270N","Asstt. Professor","14-11-1984","M.Tech.",2010,6,3,0,0,0,0,6,3,"Regular",0,"2010-06-21",1,"2015-12-31",null,6,0,3,11]
[13,"PAVITHRA ","F","AZEPB8132D","Asstt. Professor","1985-08-05","M.Tech.",2010,7,0,0,0,0,0,7,0,"Regular",0,"2010-06-21",1,"2015-12-31",null,7,0,0,10]
[14,"RAJITHA ","F","ALSPA0987D","Asstt. Professor","03-09-1985","M.Tech.",2011,8,0,0,0,0,0,8,0,"Regular",0,"2011-07-01",1,"2015-12-31",null,8,0,0,10]
[15,"PRABHU SANDEEP","M","AUPPM8456K","Asstt. Professor","19-10-1982","M.Tech.",2013,10,0,0,0,1,0,11,0,"Regular",0,"2008-01-01",1,"2015-12-31",null,11,0,0,13]
[16,"PADMAHASA","M","AQQPM4898J","Asstt. Professor","18-05-1983","M.Tech.",2013,6,0,0,0,2,5,8,5,"Regular",0,"2009-08-10",1,"2015-12-31",null,8,0,5,12]
[17,"MOHAN","M","AODPR5346B","Asstt. Professor","18-08-1985","M.Tech.",2011,5,7,0,0,0,0,5,7,"Regular",0,"2011-07-01",1,"2015-12-31",null,5,0,7,10]
[18,"JAYAPRASAD","M","AKUPJ7827J","Asstt. Professor","14-04-1985","M.Tech.",2015,7,1,0,0,0,0,7,1,"Regular",0,"2012-07-02",1,"2015-12-31",null,7,0,1,10]
[19,"KAVYA ","F","CIVPK4098R","Asstt. Professor","02-10-1988","M.Tech.",2012,3,2,0,0,0,0,3,2,"Regular",0,"2012-07-02",1,"2015-12-31",null,3,0,2,7]
[20,"VAYUSUTHA ","M","AHMPV2082L","Asstt. Professor","1985-08-27","M.Tech.",2012,5,0,0,0,0,0,5,0,"Regular",0,"2012-07-16",1,"2015-12-31",null,5,0,0,10]
[21,"SOODA RAGHAVENDRA","M","CDRPS2562P","Asstt. Professor","1981-07-21","M.Tech.",2012,7,3,0,0,0,0,7,3,"Regular",0,"2013-07-22",1,"2015-12-31",null,7,0,3,14]
[22,"SAMARTHA SREERAMA","M","APMPJ1002L","Asstt. Professor","1985-02-20","M.Tech.",2013,6,0,0,0,0,0,6,0,"Regular",0,"2013-08-01",1,"2015-12-31",null,6,0,0,10]
[23,"ANOOP KUMAR ","M","BKVPG0973J","Asstt. Professor","1986-08-27","M.Tech.",2013,5,0,0,0,0,0,5,0,"Regular",0,"2013-08-02",1,"2015-12-31",null,5,0,0,9]
[24,"VINAY","M","AUCPV9097L","Asstt. Professor","1986-07-01","M.Tech.",2012,3,2,0,0,0,0,3,2,"Regular",0,"2013-08-03",1,"2015-12-31",null,3,0,2,9]
[25,"BHAT VIDYA","F","AYOPB6221A","Asstt. Professor","27-06-1990","M.Tech.",2014,1,3,0,0,0,0,1,3,"Regular",0,"24-07-2014",1,"2015-12-31",null,1,0,3,5]
[26,"DMELLO DEMIAN ANTONY","M","AJLPD8851E","Professor","05-09-1977","PhD",2010,"15",0,0,0,"9",5,24,5,"Regular",0,"21-07-2014",1,"2015-12-31",null,24,0,5,18]
[27,"SUMATHI ","F","BNOPS1183E","Associate Professor","14-09-1974","M.Tech.",2009,"16",0,0,0,"7",0,23,0,"Regular",0,"2004-08-16",1,"2015-12-31",null,23,0,0,21]
[28,"SURESHA","M","BGGPS9453J","Associate Professor","03-05-1980","M.Tech.",2009,"14",0,0,0,"2",0,16,0,"Regular",0,"2011-07-01",1,"2015-12-31",null,16,0,0,15]
[29,"SATHISHA","M","BNCPS3504H","Asstt. Professor","06-05-1983","M.Tech.",2011,"10",0,0,0,"1",0,11,0,"Regular",0,"2011-06-13",1,"2015-12-31",null,11,0,0,12]
[30,"RANJAN ALOK","M","AGIPR7133H","Asstt. Professor","25-06-1977","M.Tech.",2007,"8",4,0,0,0,0,8,4,"Regular",0,"2011-01-03",1,"2015-12-31",null,8,0,4,18]
[31,"PADIYAR NAMRATHA","F","AGCPT9404F","Asstt. Professor","23-09-1981","M.Tech.",2013,"8",0,0,0,1,0,9,0,"Regular",0,"2007-07-16",1,"2015-12-31",null,9,0,0,14]
[32,"KODADA BASAPPA ","M","CMQPK5420G","Asstt. Professor","1982-02-20","M.Tech.",2010,"9",0,0,0,0,0,{"$f":"+W43+X43","v":9},{"$f":"+Y43","v":0},"Regular",0,"2010-06-21",1,"2015-12-31",null,{"$f":"(I43+K43+M43)","v":9},{"$f":"TRUNC((J43+L43+N43)/12)","v":0},{"$f":"MOD((J43+L43+N43),12)","v":0},{"$f":"DATEDIF(F43,$B$5,\"y\")-20","v":13}]
[33,"NORONHA VERDINE SAVIOLA","F","AMYPN2003J","Asstt. Professor","29-06-1985","M.Tech.",2010,"6",3,0,0,0,0,6,3,"Regular",0,"2010-07-01",1,"2015-12-31",null,6,0,3,10]
[34,"ANNAPURNA","F","ANEPA2140C","Asstt. Professor","1982-04-25","M.Tech.",2012,"6",3,0,0,0,0,6,3,"Regular",0,"2011-08-01",1,"2015-12-31",null,6,0,3,13]
[35,"SUSHMA ","F","BPGPD7925F","Asstt. Professor","1987-02-11","M.Tech.",2011,"5",0,0,0,0,6,5,6,"Regular",0,"2011-07-18",1,"2015-12-31",null,5,0,6,8]
[36,"RAO ABHISHEK","M","ASMPR7655L","Asstt. Professor","1986-07-25","M.Tech.",2012,"3",4,0,0,2,0,5,4,"Regular",0,"2012-06-04",1,"2015-12-31",null,5,0,4,9]
[37,"DEEPAK","M","AVFPD8422R","Asstt. Professor","1987-10-16","M.Tech.",2012,"3",3,0,0,0,0,3,3,"Regular",0,"2012-07-02",1,"2015-12-31",null,3,0,3,8]
[38,"SANTOSH","M","EICPS0137L","Asstt. Professor","1987-11-21","M.Tech.",2012,"3",3,0,0,0,0,3,3,"Regular",0,"2012-07-02",1,"2015-12-31",null,3,0,3,8]
[39,"ADITYAN","M","AVBPA7985N","Asstt. Professor","1986-10-02","M.Tech.",2013,"4",0,0,0,0,0,4,0,"Regular",0,"2013-07-22",1,"2015-12-31",null,4,0,0,9]
[40,"SANTOSH KUMAR","M","BYCPS3987F","Asstt. Professor","1984-03-02","M.Tech.",2014,"6",3,0,0,0,0,6,3,"Regular",0,"2013-07-22",1,"2015-12-31",null,6,0,3,11]
[41,"BHAT SHATANANDA","M","BEYPB4027B","Asstt. Professor","1989-10-21","M.Tech.",2013,"2",3,0,0,0,10,3,1,"Regular",0,"2013-07-22",1,"2015-12-31",null,2,1,1,6]
[42,"SHENOY NAGESH ","M","BBHPS9532E","Asstt. Professor","1985-03-24","M.Tech.",2013,"2",3,0,0,"3",5,5,8,"Regular",0,"2013-07-22",1,"2015-12-31",null,5,0,8,10]
[43,"RAJGOPAL","M","AIEPK5003H","Asstt. Professor","1983-12-03","M.Tech.",2013,"2",3,0,0,"1",0,3,3,"Regular",0,"2013-08-01",1,"2015-12-31",null,3,0,3,12]
[44,"BARAKER SUDHEER ","M","AZLPB1836F","Asstt. Professor","1989-07-31","M.Tech.",2013,"2",3,0,0,"1",0,3,3,"Regular",0,"2013-09-02",1,"2015-12-31",null,3,0,3,6]
[45,"PAVITHRA","F","BXLPP5273P","Asstt. Professor","23-05-1988","M.Tech.",2014,"3",5,0,0,0,0,3,5,"Regular",0,"24-07-2014",1,"2015-12-31",null,3,0,5,7]
[46,"PRIYADARSHINI ARCHANA ","F","BHJPP0682G","Asstt. Professor","19-11-1990","M.Tech.",2014,"1",3,0,0,0,0,1,3,"Regular",0,"24-07-2014",1,"2015-12-31",null,1,0,3,5]
[47,"ANUPAMA","F","APMPV2116B","Asstt. Professor","18-05-1990","M.Tech.",2014,"1",1,0,0,0,0,1,1,"Regular",0,"24-07-2014",1,"2015-12-31",null,1,0,1,5]
[48,"KRISHNA PRASAD ","M","CHEPK9759H","Asstt. Professor","01-01-1991","M.Tech.",2014,"1",0,0,0,0,0,1,0,"Regular",0,"24-07-2014",1,"2015-12-31",null,1,0,0,5]
[49,"JAGAPUR ESHWARIDEVI ","F","AWSPJ4653L","Asstt. Professor","01-06-1990","M.Tech.",2014,"1",2,0,0,0,0,1,2,"Regular",0,"24-07-2014",1,"2015-12-31",null,1,0,2,5]
[50,"SHIVAKUMAR ","M","AZEPS6952N","Associate Professor","23-02-1968","M.Tech.",2008,"20",0,0,0,0,0,20,0,"Regular",0,"2010-05-27",1,"2015-12-31",null,20,0,0,27]
[51,"NAYAK RAMESH ","M","AHSPN5118P","Associate Professor","20-10-1972","M.Tech.",2008,"16",0,0,0,1,0,17,0,"Regular",0,"2010-07-10",1,"2015-12-31",null,17,0,0,23]
[52,"NAYAK VASANTH ","M","ADKPN5922B","Asstt. Professor","23-03-1971","M.Tech.",2015,"5",0,0,0,"17",0,22,0,"Regular",0,"2012-06-18",1,"2015-12-31",null,22,0,0,24]
[53,"GEETHALAXMI","F","ANCPG4103D","Asstt. Professor","26-01-1982","M.Tech.",2012,"8",0,0,0,0,0,8,0,"Regular",0,"2007-08-02",1,"2015-12-31",null,8,0,0,13]
[54,"NAIK NARAYAN  RAM ","M","ALBPN0726G","Asstt. Professor","1983-06-18","M.Tech.",2009,"6",3,0,0,0,0,6,3,"Regular",0,"2010-06-30",1,"2015-12-31",null,6,0,3,12]
[55,"SADHANA ","F","AQSPB3203E","Asstt. Professor","1985-05-26","M.Tech.",2013,"8",1,0,0,0,0,8,1,"Regular",0,"2007-08-08",1,"2015-12-31",null,8,0,1,10]
[56,"RANGANATHA ","M","AMWPR9837J","Asstt. Professor","08-07-1982","M.Tech.",2011,"5",3,0,0,0,0,5,3,"Regular",0,"2011-06-02",1,"2015-12-31",null,5,0,3,13]
[57,"SHILPA ","F","BHWPB2920C","Asstt. Professor","1988-12-01","M.Tech.",2012,"3",3,0,0,0,0,3,3,"Regular",0,"2012-08-05",1,"2015-12-31",null,3,0,3,7]
[58,"KEERTHI KUMAR ","M","BHGPK0230G","Asstt. Professor","1985-06-18","M.Tech.",2010,"4",0,0,0,"1",5,5,5,"Regular",0,"2013-07-22",1,"2015-12-31",null,5,0,5,10]
[59,"HEGDE PRAGATHI PRAKASH ","F","AEIPH2573M","Asstt. Professor","05-07-1987","M.Tech.",2014,"3",6,0,0,0,0,3,6,"Regular",0,"24-07-2014",1,"2015-12-31",null,3,0,6,8]
[60,"SAMAGA RAJALAKSHMI  ","F","ACEPR8846B","Professor","1969-05-18","PhD",2013,22,0,0,0,0,0,22,0,"Regular",0,"2012-06-04",1,"2015-12-31",null,22,0,0,26]
[61,"RAO MOHAN ","M","APMPM1594C","Asstt. Professor","1978-02-04","M.Tech.",2009,11,0,0,0,3,0,14,0,"Regular",0,"2005-10-01",1,"2015-12-31",null,14,0,0,17]
[62,"KAMATH ANANTHA KRISHNA ","M","AJOPA4713D","Asstt. Professor","1981-09-21","M.Tech.",2011,9,9,0,0,1,10,11,7,"Regular",0,"2005-11-23",1,"2015-12-31",null,10,1,7,14]
[63,"ASHWINI ","F","AMVPG1139P","Asstt. Professor","1985-03-11","M.Tech.",2010,8,0,0,0,0,0,{"$f":"+W74+X74","v":8},{"$f":"+Y74","v":0},"Regular",0,"2010-07-01",1,"2015-12-31",null,{"$f":"(I74+K74+M74)","v":8},{"$f":"TRUNC((J74+L74+N74)/12)","v":0},{"$f":"MOD((J74+L74+N74),12)","v":0},{"$f":"DATEDIF(F74,$B$5,\"y\")-20","v":10}]
[64,"SWATHI ","F","BBZPK4173M","Asstt. Professor","1985-06-04","M.Tech.",2013,7,3,0,0,0,0,7,3,"Regular",0,"2008-05-30",1,"2015-12-31",null,7,0,3,10]
[65,"DIVAKAR DIVYESH ","M","AYGPD3496B","Asstt. Professor","1986-09-22","M.Tech.",2012,5,0,0,0,1,0,6,0,"Regular",0,"2011-07-04",1,"2015-12-31",null,6,0,0,9]
[66,"RAMESH ","M","ARUPR1194B","Asstt. Professor","11-07-1987","M.Tech.",2013,4,0,0,0,0,6,4,6,"Regular",0,"24-07-2014",1,"2015-12-31",null,4,0,6,8]
[67,"PRATHIBHA ","F","AXZTP2214P","Asstt. Professor","27-10-1984","M.Tech.",2012,1,3,0,0,0,0,1,3,"Regular",0,"24-07-2014",1,"2015-12-31",null,1,0,3,11]
[68,"BHAT AKSHATHA ","F","AWGPB3530N","Asstt. Professor","18-01-1990","M.Tech.",2014,1,3,0,0,0,0,1,3,"Regular",0,"24-07-2014",1,"2015-12-31",null,1,0,3,6]
[69,"KUMAR VINOD  ","M","BOHPK5144K","Asstt. Professor","31-01-1981","M.Tech.",2009,7,0,0,0,2,5,9,5,"Regular",0,"28-01-2015",1,"2015-12-31",null,9,0,5,14]
[70,"PRABHU KRISHNA BANTWAL","M","AHSPP2382D","Professor","19-10-1969","PhD",2014,"21",0,0,0,0,0,21,0,"Regular",0,"2007-07-04",1,"2015-12-31",null,21,0,0,26]
[71,"VENKATESH NAGARAJA ","M","ADLPV5800F","Professor","08-07-1974","PhD",2015,"16",4,0,0,"1",0,17,4,"Regular",0,"2012-06-01",1,"2015-12-31",null,17,0,4,21]
[72,"PRABHU SADASHIVA","M","AREPP1512B","Associate Professor","05-02-1978","M.Tech.",2004,"11",0,0,0,"2",0,13,0,"Regular",0,"2011-01-03",1,"2015-12-31",null,13,0,0,17]
[73,"KAMATH NAGESH ","M","APGPK3497Q","Associate Professor","21-10-1972","M.Tech.",2001,"12",0,0,0,"3",0,15,0,"Regular",0,"2011-07-08",1,"2015-12-31",null,15,0,0,23]
[74,"SATHEESHAKUMARA NURGEMAR","M","AEHPN7218J","Associate Professor","01-08-1974","M.Tech.",2009,"18",0,0,0,0,0,18,0,"Regular",0,"2012-05-23",1,"2015-12-31",null,18,0,0,21]
[75,"DESAI RAMESH ","M","AEUPD9803Q","Associate Professor","15-02-1965","M.Tech.",2001,"24",0,0,0,"3",0,27,0,"Regular",0,"2012-07-02",1,"2015-12-31",null,27,0,0,30]
[76,"PARAMASHIVAIAH BUKKASAGAR","M","AOWPB8384G","Associate Professor","14-04-1970","M.Tech.",2007,"23",0,0,0,0,0,23,0,"Regular",0,"2012-06-08",1,"2015-12-31",null,23,0,0,25]
[77,"RAI NIRANJAN","M","AMLPR8797G","Asstt. Professor","1979-08-30","M.Tech.",2006,"9",1,0,0,"1",0,10,1,"Regular",0,"2005-08-02",1,"2015-12-31",null,10,0,1,16]
[78,"RAI SANDESH KUMAR ","M","AKKPR1862R","Asstt. Professor","1981-07-06","M.Tech.",2008,"10",0,0,0,"1",5,11,5,"Regular",0,"2013-07-01",1,"2015-12-31",null,11,0,5,14]
[79,"MALLYA RAVINDRA ","M","AJWPM7611G","Asstt. Professor","07-06-1980","M.Tech.",2009,"4",0,0,0,0,6,4,6,"Regular",0,"2005-08-01",1,"2015-12-31",null,4,0,6,15]
[80,"KALAL NAVEEN ","M","AYOPK7595E","Asstt. Professor","30-10-1981","M.Tech.",2011,"9",0,0,0,"1",0,10,0,"Regular",0,"2007-08-02",1,"2015-12-31",null,10,0,0,14]
[81,"NARAYANASWAMY ","M","BWAPS9430B","Asstt. Professor","10-04-1985","M.Tech.",2012,"7",6,0,0,"1",4,8,10,"Regular",0,"2008-03-17",1,"2015-12-31",null,8,0,10,10]
[82,"PRASHANTHA","M","AKMPV0072F","Asstt. Professor","27-11-1985","M.Tech.",2012,"5",0,0,0,0,0,5,0,"Regular",0,"25-02-2012",1,"2015-12-31",null,5,0,0,10]
[83,"ACHARYA ROHIT JAYARAJ","M","ARVPA2310H","Asstt. Professor","21-01-1988","M.Tech.",2013,"4",3,0,0,0,0,4,3,"Regular",0,"2013-07-22",1,"2015-12-31",null,4,0,3,7]
[84,"SHENOY SRINIVAS ","M","DMIPS0955M","Asstt. Professor","04-10-1989","M.Tech.",2013,"2",0,0,0,0,0,2,0,"Regular",0,"2013-09-16",1,"2015-12-31",null,2,0,0,6]
[85,"LOHITH ","M","AGRPL1745L","Asstt. Professor","05-06-1986","M.Tech.",2012,"1",9,0,0,0,0,1,9,"Regular",0,"2014-01-29",1,"2015-12-31",null,1,0,9,9]
[86,"KUMAR VASANTH  ","M","AVUPN1288Q","Asstt. Professor","10-07-1988","M.Tech.",2011,"3",0,0,0,0,0,3,0,"Regular",0,"2014-02-01",1,"2015-12-31",null,3,0,0,7]
[87,"SANDEEP ","M","CHLPS0431H","Asstt. Professor","01-01-1982","M.Tech.",2009,"2",1,0,0,"3",0,5,1,"Regular",0,"24-07-2014",1,"2015-12-31",null,5,0,1,14]
[88,"SANDESH KAMATH","M","BXTPK1251Q","Asstt. Professor","01-02-1985","M.Tech.",2014,"6",3,0,0,0,0,6,3,"Regular",0,"24-07-2014",1,"2015-12-31",null,6,0,3,10]
[89,"SHREENATH ","M","BPZPS7797M","Asstt. Professor","22-07-1979","M.Tech.",2014,"1",2,0,0,0,0,1,2,"Regular",0,"24-07-2014",1,"2015-12-31",null,1,0,2,16]
[90,"SUNIL  KUMAR ","M","DFMPS9048E","Asstt. Professor","01-06-1984","M.Tech.",2014,"1",1,0,0,"2",0,3,1,"Regular",0,"04-08-2014",1,"2015-12-31",null,3,0,1,11]
[91,"KUMAR GIRISH  ","M","BJWPK2813F","Asstt. Professor","15-01-1968","M.Tech.",2013,20,0,0,0,5,0,25,0,"Regular",0,"16-01-2015",1,"2015-12-31",null,25,0,0,28]
[92,"DAMODARA","M","ADHPN0717H","Professor","20-04-1970","PhD",2002,"21",0,0,0,0,0,21,0,"Regular",0,"04-09-2002",1,"2015-12-31",null,21,0,0,25]
[93,"FRANK PRIYA ","F","AAKPF2391K","Associate Professor","18-10-1973","PhD",2006,"19",0,0,0,0,0,19,0,"Regular",0,"2001-09-20",1,"2015-12-31",null,19,0,0,22]
[94,"PRABHU AMITHA ","F","AIKPP7119H","Associate Professor","09-10-1966","PhD",1993,"23",0,0,0,0,0,{"$f":"+W105+X105","v":23},{"$f":"+Y105","v":0},"Regular",0,"2011-02-21",1,"2015-12-31",null,{"$f":"(I105+K105+M105)","v":23},{"$f":"TRUNC((J105+L105+N105)/12)","v":0},{"$f":"MOD((J105+L105+N105),12)","v":0},{"$f":"DATEDIF(F105,$B$5,\"y\")-20","v":29}]
[95,"HEGDE APPORVA","F","AFLPH6273A","Asstt. Professor","1989-04-14","M.Tech.",2013,1,3,0,0,0,0,1,3,"Regular",0,"2013-07-22",2,"2015-05-30",null,1,0,3,6]
[96,"THEJ KUMAR","M","AKKPJ1827E","Asstt. Professor","1984-08-12","M.Tech.",2013,4,5,0,0,0,4,4,9,"Regular",0,"1900-01-22T01:43:41.923",2,"2015-07-04",null,4,0,9,11]
[97,"RAO KRISHNA","M","ACBPR1019F","Asstt. Professor","1974-04-19","M.Tech.",2013,5,2,0,0,12,0,17,2,"Regular",0,"2013-07-22",2,"2015-07-31",null,17,0,2,21]
[98,"PRASHANTH","M","BPYPP8153D","Other ","1988-08-11","M.Tech.",2015,1,6,0,0,0,2,1,8,"Regular",0,"2014-07-28",2,"2015-07-25",null,1,0,8,7]
[99,"KRISHNAN DHANEESH","M","BZRPD1714M","Asstt. Professor","1988-12-27","M.Tech.",2013,1,5,0,0,0,0,1,5,"Regular",0,"2014-07-24",2,"2014-12-30",null,1,0,5,7]
[100,"PRAKASH SURAJ","M","BFZPP4202A","Asstt. Professor","1986-03-03","M.Tech.",2011,2,4,0,0,0,6,2,10,"Regular",0,"2012-07-02",2,"2014-11-29",null,2,0,10,9]
[101,"SHANUBHOUGE ","M","BFZPP4202A","Professor","1948-12-09","M.Tech.",1981,11,6,0,0,30,0,41,6,"Regular",0,"2005-12-26",2,"2015-06-30",null,41,0,6,47]
[102,"KAMAT HARISH KUMAR","M","BDRPK2660M","Asstt. Professor","1986-07-30","M.Tech.",2012,2,10,0,0,0,0,2,10,"Regular",0,"2013-01-28",2,"2014-07-23",null,2,0,10,9]
[103,"LONDE NEELAKANTHA","M","ACHPL7891B","Professor","1965-09-29","PhD",2012,12,11,0,0,8,6,21,5,"Regular",0,"2013-07-02",2,"2014-05-31",null,20,1,5,30]
[104,"RAMAKANTH ANAKALA","M","ASKPA3553E","Other ","1989-03-30","M.Tech.",2013,1,2,0,0,0,0,1,2,"Regular",0,"2013-07-22",2,"2013-11-29",null,1,0,2,6]
[105,"ROHINI","F","APHPA0331G","Asstt. Professor","1983-05-13","M.Tech.",2012,4,0,0,0,2,0,6,0,"Regular",0,"2012-06-06",2,"2013-08-12",null,6,0,0,12]
[106,"PRABHU NAGESH","M","ADYPP0085D","Professor","1967-11-23","PhD",2005,4,9,0,0,0,0,4,9,"Regular",0,"2009-02-18",2,"2013-12-06",null,4,0,9,28]
[107,"KUMAR HARSHA","M","ARVPM3379A","Asstt. Professor","1984-08-24","M.Tech.",2010,7,3,0,0,0,0,7,3,"Regular",0,"2006-11-09",2,"2013-12-26",null,7,0,3,11]
[108,"SHENOY BASTI BHARATH","M","FCNP58655D","Asstt. Professor","1989-03-15","M.Tech.",2014,2,3,0,0,0,0,2,3,"Regular",0,"2014-02-01",2,"2015-07-16",null,2,0,3,6]
[109,"NAYAK SHILPA","F","ALBPN0725F","Asstt. Professor","1986-03-01","M.Tech.",2010,3,9,0,0,0,0,3,9,"Regular",0,"2010-06-21",2,"2014-03-29",null,3,0,9,9]
[110,"BAIPADITHAYA NARAYANA","M","AGIPB679IR","Associate Professor","1966-03-08","M.Tech.",2009,15,2,0,0,0,0,15,2,"Regular",0,"2009-07-27",2,"2014-04-07",null,15,0,2,29]
[111,"KAMATH NAGAPRIYA","F","AHUPN5656J","Asstt. Professor","1986-07-05","M.Tech.",2012,3,9,0,0,0,0,3,9,"Regular",0,"2012-02-03",2,"2014-05-31",null,3,0,9,9]
[112,"PRASAD MANJUNATH","M","BGWPR5796P","Asstt. Professor","1987-05-01","M.Tech.",2011,4,2,0,0,0,0,4,2,"Regular",0,"2011-02-14",2,"2014-05-31",null,4,0,2,8]
[113,"GOPAKUMAR","M","AMIPG4022A","Asstt. Professor","1986-04-15","M.Tech.",2012,1,1,0,0,0,0,1,1,"Regular",0,"2012-07-25",2,"2014-05-31",null,1,0,1,9]
[114,"HEMALATHA","M","ADYPH5142H","Asstt. Professor","1983-09-02","M.Tech.",2007,6,6,0,0,0,0,6,6,"Regular",0,"2010-02-01",2,"2013-06-07",null,6,0,6,12]
[115,"RAO PRASANNA","M","AFBPR6119K","Asstt. Professor","1967-05-10","M.Tech.",1991,3,0,0,0,1,0,4,0,"Regular",0,"2012-01-25",2,"2014-05-31",null,4,0,0,28]
[116,"VIJAYLAXMI","F","AIIPV8372N","Asstt. Professor","1983-07-01","M.Tech.",2009,3,4,0,0,0,0,3,4,"Regular",0,"2010-05-18",2,"2012-12-31",null,3,0,4,12]
[117,"GOWDA SHIVALINGAPPA","M","ATTPG9835H","Other ","1975-06-01","M.Tech.",2012,2,3,0,0,7,0,9,3,"Regular",0,"2010-02-01",2,"2013-05-31",null,9,0,3,20]
[118,"YAJI SHARATH","M","BKOPS4639E","Asstt. Professor","1984-03-27","M.Tech.",2012,2,5,0,0,0,11,3,4,"Regular",0,"2012-02-01",2,"2013-06-14",null,2,1,4,11]
[119,"KUMAR VEERENDRA","M","AFJPV9621C","Asstt. Professor","1964-04-16","M.Tech.",2010,10,5,0,0,4,2,14,7,"Regular",0,"2010-06-24",2,"2013-06-14",null,14,0,7,31]
[120,"DIVYA","F","BBJPD0723L","Asstt. Professor","1985-05-31","M.Tech.",2011,3,2,0,0,0,0,{"$f":"+W131+X131","v":3},{"$f":"+Y131","v":2},"Regular",0,"2011-02-23",2,"2013-06-14",null,{"$f":"(I131+K131+M131)","v":3},{"$f":"TRUNC((J131+L131+N131)/12)","v":0},{"$f":"MOD((J131+L131+N131),12)","v":2},{"$f":"DATEDIF(F131,$B$5,\"y\")-20","v":10}]
[121,"VISHWANATH","M","CNDPS9080G","Asstt. Professor","1981-05-13","M.Tech.",2008,4,4,0,0,3,4,7,8,"Regular",0,"2009-02-02",2,"2013-06-14",null,7,0,8,14]
[122,"NAGESH","M","ANDPN3262B","Asstt. Professor","1982-08-17","M.Tech.",2009,2,8,0,0,2,5,5,1,"Regular",0,"2010-10-11",2,"2013-06-14",null,4,1,1,13]
[123,"PAI ANANTH","M","AWGPP955M","Asstt. Professor","1982-05-07","M.Tech.",2010,7,10,0,0,1,0,8,10,"Regular",0,"2005-08-24",2,"2013-06-29",null,8,0,10,13]
[124,"SURESH","M","BAEPS4331P","Professor","1970-12-09","PhD",2013,10,4,0,0,4,1,14,5,"Regular",0,"2011-07-08",2,"2013-06-14",null,14,0,5,25]
[125,"NAIR MADHUSUDAN","M","AMJPM72987K","Asstt. Professor","1980-03-02","M.Tech.",2010,5,1,0,0,0,0,5,1,"Regular",0,"2010-08-16",2,"2013-06-30",null,5,0,1,15]
[126,"HEGDE KAVYA","M","ADUPH0723L","Asstt. Professor","1986-05-14","M.Tech.",2012,2,9,0,0,0,0,2,9,"Regular",0,"01.02.2012",2,"05.07.2013",null,{"$f":"(I137+K137+M137)","v":2},{"$f":"TRUNC((J137+L137+N137)/12)","v":0},{"$f":"MOD((J137+L137+N137),12)","v":9},{"$f":"DATEDIF(F137,$B$5,\"y\")-20","v":9}]

{"sheet":"IPR","index":4,"n_rows":52,"n_cols":33,"rows_kept":52,"cut":false,"hidden":false,"merged":[[1,2,1,18],[2,2,2,11],[12,0,15,0],[14,1,15,1],[12,1,13,7],[14,2,14,5],[12,8,14,9],[26,1,26,2],[4,1,4,12],[7,2,7,11],[8,2,8,11],[9,2,9,11],[5,2,5,7],[24,2,24,8],[25,2,25,8],[14,6,14,7],[48,31,49,31],[48,32,49,32],[46,30,47,32],[48,30,49,30],[46,29,49,29]]}
[]
[]
[]
["Sr. No.","Year","Patents - Filed","Patents - Granted","Patents - Licensed","Patents - Collaborative patents","Designs - Filed ","Designs - Granted","Earning from Patents etc for last 3 financial year (2.c) - Year","Earning from Patents etc for last 3 financial year (2.c) - Amount (Rs. In Lakhs)"]
[null,"Details of Publication, Citations and IPR year-wise for the last 3 years (Calendar Years: 2012, 2013, 2014)"]
[null,null,"Details of Publications of the Institute (2.a)"]
[]
[null,1,"Provide a list of publications for past three calendar years preferably in a standard citation format such as Nature/ IEEE/ APA/ MLA. "]
[null,2,"Each publication should include author, complete title of the article or chapter in a book or the book, Volume and issue No.( in case of journal article), page nos. (starting page - ending page in case of journals article and chapters in books and total no. of pages in case of books), year of publication, ISSN No. in case of journals and ISBN no. in case of books.     "]
[null,3,"First provide list of articles published in national and international journals, followed by chapters in books/ published conference proceedings and list of books for past three calendar years."]
[]
[]
["Sl. No.","IPR (Details for Last 3 years) (2.c)",null,null,null,null,null,null,"Earning from Patents etc for last 3 financial years (2.c)"]
[]
[null,"Year","Patents",null,null,null,"Designs"]
[null,null,"Filed ","Granted","Licensed ","Collaborative patents","Filed ","Granted","Year","Amount\n(Rs. In Lakhs)"]
["[1]","[2]","[3]","[4]","[5]","[6]","[7]","[8]","[9]","[10]"]
["Input Type=>","YYYY","numeric only","numeric only","numeric only","numeric only","numeric only","numeric only","Financial year in format 2014-15, 2013-14, 2012-13","numeric only upto 2 decimal"]
[1,2014,0,0,0,0,0,0,"2014-15",0]
[2,2013,0,0,0,0,0,0,"2013-14",0]
[3,2012,0,0,0,0,0,0,"2012-13",0]
[]
[]
[null,"Notes on \"IPR\""]
[null,"Col: 3-8","Put only numeric value for no. of patents and design. Col-6 denotes total no. of patents in collaborations with other institutions."]
[null,"Col: 9-10","Total earnings from patents etc.  in respective financial year."]
[]
[]
[]
[]
[]
[]
[]
[]
[]
[]
[]
[]
[]
[]
[]
[]
[]
[]
[]
[]
[null,null,null,null,null,null,null,null,null,null,null,null,null,null,null,null,null,null,null,null,null,null,null,null,null,null,null,null,null,"Publication Type (Journal Article/ Book/ Book Chapter)"]
[]
[null,null,null,null,null,null,null,null,null,null,null,null,null,null,null,null,null,null,null,null,null,null,null,null,null,null,null,null,null,null,"Author","Details of publication","Year of Publication"]
[]
[null,null,null,null,null,null,null,null,null,null,null,null,null,null,null,null,null,null,null,null,null,null,null,null,null,null,null,null,null,"[2]*","[3]","[4]*","[5]"]
[null,null,null,null,null,null,null,null,null,null,null,null,null,null,null,null,null,null,null,null,null,null,null,null,null,null,null,null,null,"  Article/ Book/ Book Chapter","Name of Author(s) in the format: \nLast name, First name Middle name","Full title of the article/chapter/book","YYYY"]

{"sheet":"Sponsored Research","index":5,"n_rows":15,"n_cols":5,"rows_kept":15,"cut":false,"hidden":false,"merged":[[1,2,1,18],[3,0,3,4],[8,0,9,0],[6,1,7,4],[8,1,9,1],[8,2,9,2],[8,3,9,3],[8,4,9,4]]}
[]
[]
[]
["Details of Sponsored Research  year-wise for the last 3 years (Financial Years: 2012-13, 2013-14, 2014-15)"]
["Sr. No.","Year","Title of Project","Funding Agency","Amount"]
[]
[{"$f":"COUNT(A13:A9953)","v":3},"Sponsored Research (2.e)\n"]
[]
["Sr. No.","Year","Title of Project","Funding Agency","Amount\n(Rs. In Lakhs) (amount actually received in corresponding year)"]
[]
["[1]","[2]","[3]","[4]","[5]"]
[null,"Financial year in format 2014-15, 2013-14, 2012-13",null,null,"numeric only upto 2 decimal"]
[{"$f":"+A12+1","v":1},"2014-2015","NIL","NIL",0]
[{"$f":"+A13+1","v":2},"2013-2014","NIL","NIL",0]
[{"$f":"+A14+1","v":3},"2012-2013","NIL","NIL",0]

{"sheet":"Consultancy","index":6,"n_rows":16,"n_cols":5,"rows_kept":16,"cut":false,"hidden":false,"merged":[[1,2,1,18],[3,0,3,4],[9,0,10,0],[7,1,8,4],[9,1,10,1],[9,2,10,2],[9,3,10,3],[9,4,10,4]]}
[]
[]
[]
["Details of Consultancy  year-wise for the last 3 years (Financial Years: 2012-13, 2013-14, 2014-15)"]
[]
["Sr. No.","Year","Title of Project","Funding Agency","Amount"]
[]
[{"$f":"COUNT(A14:A9962)","v":3},"Consultancy (2.e)\n"]
[]
["Sr. \nNo.","Year","Title of Consultancy Project","Funding Agency","Amount\n(Rs. In Lakhs) (amount actually received in corresponding year)"]
[]
["[1]","[2]","[3]","[4]","[5]"]
[null,"Financial year in format 2014-15, 2013-14, 2012-13",null,null,"numeric only upto 2 decimal"]
[{"$f":"+A13+1","v":1},"2014-2015","CNC MACHINING WORK","ABHAY INDUSTRIES",1.47]
[{"$f":"+A14+1","v":2},"2013-2014","NIL","NIL",0]
[{"$f":"+A15+1","v":3},"2012-2013","NIL","NIL",0]

{"sheet":"Education Program","index":7,"n_rows":13,"n_cols":5,"rows_kept":13,"cut":false,"hidden":false,"merged":[[1,2,1,18],[3,0,3,4],[9,1,10,1],[7,2,8,4],[9,2,10,2],[9,3,10,3],[9,4,10,4],[9,0,10,0]]}
[]
[]
[]
["Details of Continuing Education Program for the last 3 years (Academic Years: 2012-13, 2013-14, 2014-15)"]
[]
["Sr. No.","Year","Name of Prog","No of Participants to whom certificate issued","No of Days"]
[]
[{"$f":"COUNT(A14:A961)","v":0},null,"Continuing Education Programs Imparted (not less than 6 days duration) held in last 3 years (4.a)\n"]
[]
["Sr. \nNo.","Year","Name of program","No of Participants to whom certificate issued","No of Days"]
[]
["[1]","[2]","[3]","[4]","[5]"]
[null,"Academic year in format 2014-15, 2013-14, 2012-13",null,null,"numeric only"]

{"sheet":"Students","index":8,"n_rows":40,"n_cols":35,"rows_kept":40,"cut":false,"hidden":false,"merged":[[16,26,19,26],[20,26,23,26],[16,30,19,30],[16,31,19,31],[20,30,23,30],[20,31,23,31],[16,27,19,27],[16,28,19,28],[16,29,19,29],[20,27,23,27],[20,28,23,28],[20,29,23,29],[12,22,15,22],[12,23,15,23],[12,24,15,24],[12,25,15,25],[12,31,15,31],[12,26,15,26],[12,27,15,27],[12,28,15,28],[20,23,23,23],[20,24,23,24],[20,25,23,25],[16,21,19,21],[16,22,19,22],[16,23,19,23],[16,24,19,24],[16,25,19,25],[2,1,2,33],[34,2,34,8],[35,2,35,8],[36,2,36,8],[37,2,37,8],[31,2,31,8],[32,2,32,8],[33,2,33,8],[12,32,23,32],[12,33,23,33],[8,17,9,17],[12,21,15,21],[12,29,15,29],[12,30,15,30],[20,21,23,21],[20,22,23,22],[8,6,8,8],[7,3,7,8],[7,9,7,11],[8,10,9,10],[8,9,9,9],[8,11,9,11],[1,1,1,33],[8,24,9,24],[8,30,8,31],[8,33,9,33],[7,18,7,20],[8,20,9,20],[8,19,9,19],[8,18,9,18],[8,25,9,25],[8,26,9,26],[8,27,9,27],[5,0,6,18],[7,12,7,17],[7,0,9,0],[7,1,9,1],[7,2,9,2],[39,2,39,8],[40,2,40,8],[7,32,7,33],[8,12,9,12],[8,29,9,29],[8,32,9,32],[7,21,7,25],[8,28,9,28],[8,21,9,21],[8,23,9,23],[7,26,7,29],[7,30,7,31],[8,22,9,22],[38,2,38,8],[8,16,9,16],[8,3,8,5]]}
[]
[]
[]
[]
["Year","Leave of Programme","Approved Intake ","Actual intake (1.a & 4.b) - No. of Students admitted in 1st year - Within State","Actual intake (1.a & 4.b) - No. of Students admitted in 1st year - Outside State","Actual intake (1.a & 4.b) - No. of Students admitted in 1st year - Outside Country","Actual intake (1.a & 4.b) - Lateral Entry in 2nd Year for UG Program only - Within State","Actual intake (1.a & 4.b) - Lateral Entry in 2nd Year for UG Program only - Outside State","Actual intake (1.a & 4.b) - Lateral Entry in 2nd Year for UG Program only - Outside Country","Total No. of Students in all 4 years for UG programs and 2 years in PG programs  and all Ph.D. Students (4.c) - Male","Total No. of Students in all 4 years for UG programs and 2 years in PG programs  and all Ph.D. Students (4.c) - Female","Total No. of Students in all 4 years for UG programs and 2 years in PG programs  and all Ph.D. Students (4.c) - Total","No. of Students in Special Categories (4.b) - Economically Backward",null,null,null,"No. of Students in Special Categories (4.b) - Socially isadvantaged (SC, ST & OBC)","No. of Students in Special Categories (4.b) - Physically Challenged","Performance in University Examination (3.a)\n(No. of Students graduating in time) - No. of Studetns Admitted in 1 year; as per batch","Performance in University Examination (3.a)\n(No. of Students graduating in time) - Lateral Entry as per batch","Performance in University Examination (3.a)\n(No. of Students graduating in time) - No. of Students Graduating in Minimum Time","Performance in Public Examinations (3.a) - UPSC Examinations","Performance in Public Examinations (3.a) - State Govt. Examination","Performance in Public Examinations (3.a) - GATE","Performance in Public Examinations (3.a) - CAT","Performance in Public Examinations (3.a) - Other (Please Specify)","Placement in Company/ Government Organisations through Campus Placement in Previous Year            (3.b and 3.c) - No. of students","Placement in Company/ Government Organisations through Campus Placement in Previous Year            (3.b and 3.c) - Minimum Salary","Placement in Company/ Government Organisations through Campus Placement in Previous Year            (3.b and 3.c) - Maximum Salary","Placement in Company/ Government Organisations through Campus Placement in Previous Year            (3.b and 3.c) - Average Salary","Students Opting for Higher Studies  (3.b) - No. of Admissions - With Examination","Students Opting for Higher Studies  (3.b) - No. of Admissions - Without Examination","Entrepreneurship in Engg. & Tech. (include only students started entrepreneurship in the field of study) (3.b) - No. of Student started entrepreneurship in last 10 year","Entrepreneurship in Engg. & Tech. (include only students started entrepreneurship in the field of study) (3.b) - No. of Student  passed out in last 10 years","dgfs"]
["Students Details Year-wise for the Last 3 Academic Years"]
[]
["Year","Level of Programme","Approved Intake ","Actual Intake (1.a & 4.b)",null,null,null,null,null,"Total No. of Students in all 4 years for UG programs and 2 years in PG programs  and all Ph.D. Students (4.c)",null,null,"No. of Students in Special Categories (4.b)",null,null,null,null,null,"Performance in University Examination (3.a)\n(No. of Students graduating in minimum time)",null,null,"Performance in Public Examinations (3.a)",null,null,null,null,"Placement in Company/ Government Organisations through Campus Placement in Previous Year            (3.b and 3.c)",null,null,null,"Students Opting for Higher Studies  (3.b)",null,"Entrepreneurship in Engg. & Tech. (include only students started entrepreneurship in the field of study) (3.b)"]
[null,null,null,"No. of Students admitted in 1st year",null,null,"Lateral Entry in 2nd year for UG program only",null,null,"Male ","Female","Total","Economically Backward ","Socially Disadvantaged ","Socially Disadvantaged ","Socially Disadvantaged ","Socially Disadvantaged (SC, ST & OBC)\nTotal","Physically Challenged","No. of Students Admitted in 1 year; as per batch","Lateral Entry\nas per batch","No. of Students Graduating in Minimum Time ","UPSC Examinations","State Govt. Examination","GATE","CAT","Others\n(Please Specify)","No. of the Students","Minimum Salary","Maximum Salary","Average Salary","No. of Admissions",null,"No. of Student started entrepreneurship in last 10 years","Number of Students passed out in last 10 years"]
[null,null,null,"Within State","Outside State","Outside Country","Within State","Outside State","Outside Country",null,null,null,null,"SC","ST","OBC",null,null,null,null,null,null,null,null,null,null,null,null,null,null,"with Examination","without Examination"]
["[1]","[2]","[3]","[4]","[5]","[6]","[7]","[8]","[9]","[10]","[11]","[12]","[13]","[14]","[15]","[16]","[17]","[18]","[19]","[20]","[21]","[22]","[23]","[24]","[25]","[26]","[27]","[28]","[29]","[30]","[31]","[32]","[33]","[34]"]
[null,null,"numeric only","numeric only","numeric only","numeric only","numeric only","numeric only","numeric only","numeric only","numeric only","numeric only (computed automatically)","numeric only","numeric only","numeric only","numeric only","numeric only","numeric only","numeric only","numeric only","numeric only","numeric only","numeric only","numeric only","numeric only","numeric only","numeric only","numeric only","numeric only","numeric only","numeric only","numeric only","numeric only","numeric only"]
["2014-15","UG",600,460,21,0,64,0,0,1237,758,{"$f":"+J13+K13","v":1995},94,33,22,431,{"$f":"(SUM(N13:P13))","v":486},0,421,66,428,0,5,2,0,0,244,2.4,5.6,4,4,0,25,2275]
["2014-15","PG",36,21,0,0,0,0,0,24,26,{"$f":"+J14+K14","v":50},0,1,1,2,{"$f":"(SUM(N14:P14))","v":4},0,29,0,28]
["2014-15","PG-Int",0,0,0,0,0,0,0,0,0,{"$f":"+J15+K15","v":0},0,0,0,0,0,0,0,0,0]
["2014-15","Ph.D.",35,4,0,0,0,0,0,8,3,11,0,0,0,0,0,0,0,0,0]
["2013-14","UG",600,456,27,0,66,0,0,1142,741,1883,71,28,24,317,369,0,353,108,365,0,29,0,0,0,154,2.4,3.7,3.05,20,0]
["2013-14","PG",36,29,0,0,0,0,0,30,32,62,0,5,2,11,18,0,33,0,33]
["2013-14","PG-Int",0,0,0,0,0,0,0,0,0,0,0,0,0,0,0,0,0,0,0]
["2013-14","Ph.D.",35,6,0,0,0,0,0,5,2,7,0,0,0,0,0,0,0,0,0]
["2012-13","UG",600,416,26,0,76,0,0,1048,619,1667,47,12,23,296,331,0,223,75,287,0,15,0,0,0,124,2,4.9000000000000004,3.48,25,0]
["2012-13","PG",36,33,0,0,0,0,0,43,23,66,0,8,2,21,31,0,34,0,34]
["2012-13","PG-Int",0,0,0,0,0,0,0,0,0,0,0,0,0,0,0,0,0,0,0]
["2012-13","Ph.D.",35,1,0,0,0,0,0,1,0,1,0,0,0,0,0,0,0,0,0]
[]
[]
[]
[]
[]
[]
[null,"*Notes on \"Students\""]
[null,"Col: 03-09","Include the total no. of student admitted in a given academic year as numeric value for 1st year (Col. 4-6) and 2nd year - Lateral entry (Col. 7-9) "]
[null,"Col: 10-12","Include the actual student strength in a given academic year in different level of Program, e.g, students from all 4 year in case of UG, all 2 years in case of PG and all PhD students."]
[null,"Col: 13-16","Students whose annual family income is less than Rs. 3 lakhs. Do not include the students who are counted under SC, ST, OBC given in column 14,15,16. "]
[null,"Col: 18","No. of physically-challenged students"]
[null,"Col: 19-21","No. of students admitted in respective years (first batch and lateral entry) and graduated in minimum time."]
[null,"Col: 22-26","No. of students successful in different public examinations "]
[null,"Col: 27-30","No. of students placed and their salary per year (package)"]
[null,"Col: 31-32","Mention the no. of students opted for higher studies through any competitive / entrance examination in col no. 31. Mention the no. of students opted for higher studies through merit basis or similar criterias without any written examination in col. 32."]
[null,"Col: 33-34","No. of students who became successful entrepreneurs in the same field i.e. Engg. and technology"]

{"sheet":"Public Exam","index":9,"n_rows":15,"n_cols":5,"rows_kept":15,"cut":false,"hidden":false,"merged":[[1,2,1,18],[3,0,3,4],[9,2,9,4],[10,0,12,0],[10,1,12,1],[10,2,10,4],[11,2,12,2],[11,3,12,3],[11,4,12,4]]}
[]
[]
[]
["Details of Performance in Public Examinations for the Past 3 Academic Years (3.a)(Academic Years: 2012-13, 2013-14, 2014-15)"]
[]
[]
[]
["Sr. No.","Year","Examination Body","Name of the Examination","No. of Successful Students"]
[]
[{"$f":"COUNT(A16:A923)","v":0},null,"Performance in Public Examinations for the Past 3 Academic Years (3.a)"]
["Sr. No.","Year"]
[null,null,"Examination Body","Name of the Examination","No. of Successful Students"]
[]
["[1]","[2]","[3]","[4]","[5]"]
[null,null,null,null,"numeric only"]

{"sheet":"Student Event","index":10,"n_rows":53,"n_cols":5,"rows_kept":53,"cut":false,"hidden":false,"merged":[[1,2,1,18],[3,0,3,4],[10,1,12,1],[10,0,12,0],[10,2,10,4],[11,2,12,2],[11,3,12,3],[11,4,12,4],[9,2,9,4]]}
[]
[]
[]
["Details Top Positions in Sports/Extra Curricular Events for past 3 years (Academic Years: 2012-13, 2013-14, 2014-15)"]
[]
[]
[]
["Sr. No.","Year","Name of Event","Position","Type of Event"]
[]
[{"$f":"COUNT(A16:A960)","v":38},null,"Top Position in Inter-college Sports/ Extra Curricular Events for the Past 3 Academic Years (1.d)"]
["Sr. No.","Year"]
[null,null,"Name of the Event","Position","Type of Event"]
[]
["[1]","[2]","[3]","[4]","[5]"]
[null,null,null,"numeric only","International/ National/ State level"]
[{"$f":"+A15+1","v":1},"2014-2015","ANANDOTSAVA - 15 at NMAMIT Nitte: Battle of Bands",1,"State Level"]
[2,"2014-2015","AAKRITI - 15 at CEC Mangaluru: Apprentice",1,"State Level"]
[3,"2014-2015","AAKRITI - 15 at CEC Mangaluru: Group Dance Eastern",1,"State Level"]
[4,"2014-2015","AAKRITI - 15 at CEC Mangaluru: Light Camera Action",1,"State Level"]
[5,"2014-2015","WKC: F. A. Q",1,"State Level"]
[6,"2014-2015","WKC: Poetry",1,"State Level"]
[7,"2014-2015","AAKRITI - 15 at CEC Mangaluru: Harmonica Symphony",1,"State Level"]
[8,"2014-2015","AAKRITI - 15 at CEC Mangaluru: Apprentice",1,"State Level"]
[9,"2014-2015","CanTech 15 at CEC Mangaluru: CWF",1,"State Level"]
[10,"2013-2014","SAMBHRAM - 14 at SDIT, Mangaluru: Group Dance",1,"State Level"]
[11,"2013-2014","AAKRITI - 14 at CEC Mangaluru: Group Dance Eastern",1,"State Level"]
[12,"2013-2014","AAKRITI -14 at CEC Mangaluru: Clix",1,"State Level"]
[13,"2013-2014","SIT: Group Dance",1,"State Level"]
[14,"2013-2014","SIT: Group Dance",1,"State Level"]
[15,"2013-2014","SIT: Group Dance",1,"State Level"]
[16,"2013-2014","TechGuru 14 at CEC Mangaluru: Junk Monk",1,"State Level"]
[17,"2012-2013","EXIMIUS - 2K13 at SCEM Mangaluru: Group Dance",1,"State Level"]
[18,"2012-2013","EXIMIUS - 2K13 at SCEM Mangaluru: Group Dance",1,"State Level"]
[19,"2012-2013","SPLASH - 13 at MVSIT: Group Dance",1,"State Level"]
[20,"2012-2013","SPLASH - 13 at MVSIT: Group Dance Eastern",1,"State Level"]
[21,"2012-2013","INCIDENT -13 at NITK Mangaluru: Promennade",1,"State Level"]
[22,"2012-2013","AAKRITI - 13 at CEC Mangaluru: Collage",1,"State Level"]
[23,"2012-2013","EXIMIUS - 2K13 at SCEM Mangaluru: Group Dance",1,"State Level"]
[24,"2012-2013","SPLASH - 13 at MVSIT: Group Dance Eastern",1,"State Level"]
[25,"2012-2013","INCIDENT -13 at NITK Mangaluru: Promennade",1,"State Level"]
[26,"2012-2013","INCIDENT -13 at NITK Mangaluru: Group Dance Western",1,"State Level"]
[27,"2012-2013","INCIDENT -13 at NITK Mangaluru: Group Dance Western",1,"State Level"]
[28,"2012-2013","INCIDENT -13 at NITK Mangaluru: Group Dance Eastern",1,"State Level"]
[29,"2012-2013","EXIMIUS - 2K13 at SCEM Mangaluru: Group Dance Western",1,"State Level"]
[30,"2012-2013","EXIMIUS - 2K13 at SCEM Mangaluru: Group Dance Eastern",1,"State Level"]
[31,"2012-2013","EXIMIUS - 2K13 at SCEM Mangaluru: Group Dance Western",1,"State Level"]
[32,"2012-2013","SPLASH - 13 at MVSIT: Group Dance Eastern",1,"State Level"]
[33,"2012-2013","SPLASH - 13 at MVSIT: Group Dance Western",1,"State Level"]
[34,"2012-2013","SPLASH - 13 at MVSIT: Group Dance Western",1,"State Level"]
[35,"2014-2015","VTU LEVEL TABLE TENNIS",1,"State Level"]
[36,"2014-2015","VTU LEVEL WRESTLING",1,"State Level"]
[37,"2014-2015","VTU LEVEL CRICKET",1,"State Level"]
[38,"2012-2013","VTU LEVEL WRESTLING",1,"State Level"]

{"sheet":"Facilities","index":11,"n_rows":20,"n_cols":12,"rows_kept":20,"cut":false,"hidden":false,"merged":[[18,2,18,8],[19,2,19,8],[0,1,0,33],[6,0,6,9],[7,9,9,9],[8,2,9,2],[8,7,9,7],[8,1,9,1],[7,0,9,0],[7,1,7,2],[8,8,9,8],[8,5,8,6],[7,5,7,7],[8,4,9,4],[7,10,8,11],[7,3,7,4],[8,3,9,3],[17,2,17,8],[1,1,1,9]]}
[]
[]
[]
[]
[{"$f":"COUNT(A13:A20)","v":0}]
["Year","Library (1.c) - On Physical Resource : Books & Journals","Library (1.c) - On e-Resources: e-Jouranals, e-books, etc.","Laboratories (1.c) - On Creation/ Up-gradation & Equipment","Laboratories (1.c) - On Maintenance & Safety","Sports Facilities (1.d) - Total Area (In Sq. Mtrs.) - Outdoor","Sports Facilities (1.d) - Total Area (In Sq. Mtrs.) - Indoor","Sports Facilities (1.d) - Annual Expenditure amount (Rest. In Lakhs)","Extra Curricular Facilities (1.d) - Expenditure Amount (Rest. In Lakhs)","Number of Women Members of Eminence as Institute Head or \nin the Governing Board of the Institute being Ranked (4.c)","Zero Deficiency Report (1.c)\n(To be filled by Institutions ranked under Category B) -  For Library","Zero Deficiency Report (1.c)\n(To be filled by Institutions ranked under Category B) -  For Laboratory"]
["Annual Expenditures on Library, Laboratories and Sports Facilities Yearwise for Last 3 Financial Years \nAmount (Rs. in Lakhs)"]
["Year","Library (1.c)",null,"Laboratories (1.c)",null,"Sports Facilities (1.d)",null,null,"Extra Curricular Facilities (1.d)","Number of Women Members of Eminence as Institute Head or \nin the Governing Board of the Institute (4.c)","Zero Deficiency Report (1.c)\n(To be filled by Institutions ranked under Category B)"]
[null,"On Physical Resources: Books &  Journals","On e-Resources: e-Journals, e-books, etc.","On Creation/ Up-gradation & Equipment ","On Maintenance & Safety","Total Area\n(in Sq. Mtrs.)",null,"Annual Expenditures \nAmount (Rs. In Lakhs) ","Expenditures \nAmount (Rs. In Lakhs) "]
[null,null,null,null,null,"Outdoor","Indoor",null,null,null,"For Library","For Laboratory"]
["[1]","[2]","[3]","[4]","[5]","[6]","[7]","[8]","[9]","[10]","[11]","[12]"]
["Financial year in format 2014-15, 2013-14, 2012-13","numeric only upto 2 decimal","numeric only upto 2 decimal","numeric only upto 2 decimal","numeric only upto 2 decimal","numeric only upto 2 decimal","numeric only upto 2 decimal","numeric only upto 2 decimal","numeric only upto 2 decimal","numeric only ","Yes/No","Yes/No"]
["2014-15",8.31,11.33,79.06,2.5,14000,350,3.07,0,0,"Yes","Yes"]
["2013-14",7.39,10.050000000000001,64.39,2.25,14000,350,1.81,0,0,"Yes","Yes"]
["2012-13",8.77,8.2899999999999991,51.49,2,14000,350,1.65,0,0,"Yes","Yes"]
[]
[null,"Notes on \"Facilities\""]
[null,"Col: 02-09","Annual expenditures (Rs. in Lakhs upto 2 decimal points) including Library, Laboratories, Sports Facilities, Extra curricular."]
[null,"Col: 10","No of women members of eminence as institute head or in GB of the institute."]
[null,"Col: 11-12","These two columns need to be filled by Institutions ranked under Category B only. Please mention yes if your institute is having the zero deficiency report issued by AICTE."]

{"sheet":"PH_Facilities","index":12,"n_rows":32,"n_cols":3,"rows_kept":32,"cut":false,"hidden":false,"merged":[[18,2,20,2],[21,2,24,2],[25,2,27,2],[28,2,30,2],[1,1,1,2],[7,0,7,2],[2,1,2,2],[9,2,12,2],[13,2,17,2]]}
[]
[]
[]
[]
[]
[]
[]
["Details of Facilities for Physically Challenged Students (4.e)"]
["Sl. No","Question","Ans (Enter only numeric value i.e. 1 or 2 or 3 or 4)"]
[1,"Do your buildings have ramp? ",1]
[null,"1. No ramp"]
[null,"2. Less than or equal to 50%"]
[null,"3. More than 50%"]
[2,"Do your buildings have lifts?",1]
[null,"1. No lift"]
[null,"2. Less than or equal to 50% "]
[null,"3. More than 50%"]
[null,"4. Building does not have more than three floors"]
[3,"Do you have provision for walking aids including wheel chairs and transportation from one building to another for handicapped students?",1]
[null,"1. Yes"]
[null,"2. No"]
[4,"Do your buildings have specially designed toilets for handicapped students?       ",1]
[null,"1. No such facility"]
[null,"2. In Less than or equal to 50% Buildings "]
[null,"3. In more  than 50% buildings"]
[5,"Do you have Braille Lab / special Lab for Blinds/handicapped students?",2]
[null,"1. Yes"]
[null,"2. No"]
[6,"Do you have special facilities for blinds students (such as text to audio convertor, screen magnification software, special provision for examiniation?                                            ",2]
[null,"1. Yes"]
[null,"2. No"]
[null," "]

{"sheet":"Sheet1","index":13,"n_rows":12,"n_cols":3,"rows_kept":12,"cut":false,"hidden":true,"merged":[]}
["<?xml version=\"1.0\" encoding=\"UTF-8\"?>"]
["djflj","alsdj","lkajsld"]
[]
[]
[]
[]
[]
[]
[]
[]
[]
[null,"gt1g2"]

{"sheet":"Sheet2","index":14,"n_rows":0,"n_cols":0,"rows_kept":0,"cut":false,"hidden":false,"merged":[]}